bitfinex/quotes_ETHUSD_20260129
["timestamp","ask_amount","ask_price","bid_price","bid_amount"]
[1769719931951,0.001,2806.9,2806.4,0.89082098]
[1769719934329,0.06787896,2806.6,2806.1,0.002]
[1769719934529,0.06787896,2806.4,2806.0,0.746]
[1769719934759,0.06787896,2806.6,2806.0,0.746]
[1769719936047,0.001,2806.9,2806.0,13.88292284]
[1769719938654,0.958594,2806.8,2805.9,3.56579187]
[1769719938830,0.06787896,2806.6,2805.9,3.56579187]
[1769719939357,13.09691125,2806.6,2805.9,0.002]
[1769719939555,0.06787896,2806.3,2805.8,0.89100768]
[1769719940435,0.06787896,2806.4,2805.6,0.002]
[1769719940630,1.38435798,2806.4,2805.8,0.89100212]
[1769719941033,2.27520054,2806.4,2805.6,3.56624811]
[1769719941372,0.06787896,2806.2,2805.6,3.56624811]
[1769719941558,0.06787896,2806.3,2805.6,3.56624811]
[1769719942262,0.06787896,2806.3,2805.3,16.70358282]
[1769719942263,0.06787896,2805.9,2805.3,0.89314751]
[1769719942559,0.06787896,2806.1,2805.3,0.002]
[1769719942863,0.06787896,2805.8,2805.3,0.002]
[1769719943069,0.06787896,2806.1,2805.3,0.002]
[1769719943487,0.06787896,2805.9,2805.3,0.002]
[1769719943836,0.06787896,2805.9,2805.5,0.002]
[1769719944244,0.06787896,2805.8,2805.0,0.746]
[1769719944671,0.06787896,2805.7,2805.0,0.746]
[1769719945239,0.06787896,2805.7,2805.1,0.89123382]
[1769719946472,0.06787896,2805.2,2804.4,0.002]
[1769719946642,0.06787896,2805.2,2804.6,0.89123382]
[1769719946838,0.06787896,2805.4,2804.6,14.22645403]
[1769719947062,0.06787896,2805.6,2804.6,16.09521404]
[1769719947265,0.95897633,2805.6,2804.7,0.89136092]
[1769719947441,0.06787896,2805.2,2804.7,0.89136092]
[1769719947638,0.06787896,2805.4,2804.8,0.89123382]
[1769719949168,0.06787896,2805.2,2804.8,0.89123382]
[1769719950272,0.06787896,2805.6,2804.8,1.78256186]
[1769719950482,0.06787896,2805.5,2804.8,1.78256186]
[1769719950772,0.06787896,2805.3,2804.8,0.89123382]
[1769719951444,0.06787896,2805.3,2804.5,0.002]
[1769719951772,0.06787896,2804.7,2804.5,0.002]
[1769719952155,0.06787896,2804.9,2804.5,0.002]
[1769719953847,0.06787896,2804.5,2804.0,0.746]
[1769719954061,0.06787896,2804.3,2804.0,0.746]
[1769719955043,0.06787896,2804.3,2804.0,1.63756704]
[1769719955249,0.06787896,2804.5,2804.0,1.63756704]
[1769719955975,0.95931072,2804.5,2804.0,0.746]
[1769719956178,0.06787896,2804.5,2804.0,0.746]
[1769719956475,0.45926466,2804.5,2804.0,1.63757137]
[1769719956648,0.9592612,2804.7,2804.0,1.63756995]
[1769719957445,0.06787896,2804.5,2804.0,1.63758204]
[1769719957652,0.06787896,2804.3,2803.9,0.002]
[1769719958145,0.06787896,2804.3,2803.6,0.002]
[1769719958146,0.06787896,2804.0,2803.6,0.002]
[1769719958351,0.9594809,2804.0,2803.6,0.002]
[1769719958591,0.06787896,2803.8,2803.3,0.002]
[1769719959468,0.06787896,2804.1,2803.3,0.002]
[1769719959660,0.06787896,2803.9,2803.3,0.002]
[1769719960367,0.06787896,2804.3,2803.4,14.41343184]
[1769719960586,0.06787896,2804.1,2803.3,0.89378558]
[1769719960745,0.06787896,2803.8,2803.3,0.89378558]
[1769719960950,0.06787896,2804.1,2803.3,0.89378558]
[1769719961159,0.06787896,2803.9,2803.3,0.89378558]
[1769719961560,0.06787896,2804.1,2803.3,0.89378558]
[1769719961974,0.06787896,2803.9,2803.3,0.89379783]
[1769719962345,0.06787896,2803.9,2803.3,0.002]
[1769719963188,0.06787896,2803.3,2802.9,1.638908]
[1769719963484,0.06787896,2803.3,2802.9,1.63891138]
[1769719963681,0.06787896,2803.4,2802.9,1.63890662]
[1769719963983,0.06787896,2803.2,2802.7,0.89198083]
[1769719964160,0.06787896,2803.0,2802.7,0.89198755]
[1769719964367,0.06582896,2803.0,2802.5,3.57020482]
[1769719964668,0.89187666,2803.1,2802.5,0.002]
[1769719964870,0.06787896,2802.7,2801.8,17.09078641]
[1769719965083,0.06787896,2802.4,2802.0,0.89221723]
[1769719965385,0.06787896,2802.7,2801.9,0.89224141]
[1769719965683,0.06787896,2802.7,2802.0,0.89221936]
[1769719965684,0.06787896,2802.5,2802.0,0.89221936]
[1769719966186,0.06787896,2802.3,2801.2,3.56986938]
[1769719966351,0.06787896,2801.9,2801.1,13.52165757]
[1769719966550,0.06787896,2801.9,2801.2,0.89247465]
[1769719966753,0.06787896,2801.7,2801.1,0.89250477]
[1769719966952,0.06787896,2801.9,2801.1,0.89250477]
[1769719967151,0.06787896,2801.9,2801.1,3.04792953]
[1769719967793,0.06787896,2802.2,2801.1,16.5695871]
[1769719968352,0.06787896,2802.4,2801.1,16.5695871]
[1769719968668,0.06787896,2802.7,2801.1,16.5695871]
[1769719968878,0.06787896,2802.5,2801.1,16.5695871]
[1769719969058,0.06787896,2802.1,2801.3,13.52165757]
[1769719969265,0.06787896,2802.3,2801.3,13.52165757]
[1769719969477,0.06787896,2802.1,2801.7,0.002]
[1769719970184,0.06787896,2802.3,2801.7,0.002]
[1769719970389,0.06787896,2802.1,2801.7,0.002]
[1769719970566,0.06787896,2802.3,2801.7,0.002]
[1769719971287,0.06787896,2802.1,2801.7,0.002]
[1769719972178,0.06787896,2802.3,2801.7,0.002]
[1769719972380,0.06787896,2802.1,2801.7,0.002]
[1769719972747,0.06787896,2802.7,2801.7,13.52365757]
[1769719972885,0.06787896,2802.5,2801.8,1.35236576]
[1769719974656,0.06787896,2802.5,2801.9,0.89225168]
[1769719975976,0.06787896,2802.3,2801.9,0.89225168]
[1769719976388,0.06787896,2802.3,2801.7,3.57122156]
[1769719976389,0.06787896,2802.3,2801.8,0.89225994]
[1769719976685,0.06787896,2802.3,2801.7,0.002]
[1769719979271,0.06787896,2801.5,2800.5,13.42846448]
[1769719979474,0.06787896,2801.5,2800.7,0.89263398]
[1769719979475,0.06787896,2801.2,2800.7,0.89263398]
[1769719979772,0.06787896,2801.7,2800.7,14.32109846]
[1769719980163,0.06787896,2801.9,2800.7,14.32109846]
[1769719980484,0.06787896,2802.3,2801.2,13.42846448]
[1769719980688,0.06787896,2802.3,2801.3,14.17546448]
[1769719981005,0.06787896,2802.3,2801.5,0.89237908]
[1769719981177,3.63588449,2802.7,2801.5,0.89237908]
[1769719981178,0.06787896,2802.7,2801.5,14.32084356]
[1769719981674,0.06787896,2802.5,2801.9,0.002]
[1769719981879,0.06787896,2802.2,2801.6,0.002]
[1769719982070,0.06787896,2802.0,2801.6,0.002]
[1769719985397,0.89212897,2802.3,2801.6,0.002]
[1769719985398,14.34992919,2802.1,2801.6,0.002]
[1769719985702,0.06787896,2801.7,2801.6,0.002]
[1769719985872,0.06787896,2801.9,2801.6,0.002]
[1769719986267,0.06787896,2802.1,2801.6,0.002]
[1769719986470,13.45773833,2802.7,2801.6,0.002]
[1769719986713,0.06787896,2802.5,2801.6,0.002]
[1769719986871,0.06787896,2802.7,2801.6,1.34504645]
[1769719987222,1e-08,2802.9,2802.1,13.42846448]
[1769719987369,0.89177379,2803.5,2802.1,13.42846448]
[1769719987574,0.06787896,2803.1,2802.1,13.42846448]
[1769719987807,0.06787896,2803.1,2802.2,2.09394582]
[1769719988417,0.06787896,2802.7,2801.9,1.63925168]
[1769719988578,0.06787896,2802.9,2801.9,1.63925168]
[1769719988778,0.06787896,2803.1,2801.9,1.63925168]
[1769719989282,0.06787896,2803.3,2802.1,13.42846448]
[1769719989596,0.06787896,2803.3,2802.2,2.09394582]
[1769719990105,0.06787896,2803.1,2802.2,2.09394582]
[1769719990330,0.06787896,2803.3,2802.2,2.09394582]
[1769719991029,0.06787896,2803.2,2802.2,2.09394582]
[1769719991527,0.06787896,2803.2,2802.3,0.89212432]
[1769719991734,0.06787896,2803.2,2802.4,0.65545674]
[1769719993231,13.38985937,2803.5,2802.4,0.65545674]
[1769719993635,0.06787896,2803.6,2802.5,0.89206066]
[1769719994001,0.001,2803.1,2802.5,0.89206066]
[1769719994240,0.06787896,2803.6,2802.5,0.89206066]
[1769719994427,1.50281991,2803.6,2802.6,0.511576]
[1769719994932,0.06787896,2803.4,2802.6,0.511576]
[1769719995743,0.06787896,2803.4,2802.7,0.891997]
[1769719995952,0.06787896,2803.2,2802.7,0.891997]
[1769719998037,0.06787896,2803.2,2802.5,0.89206066]
[1769719998445,0.06787896,2802.6,2801.6,0.002]
[1769719998735,0.06787896,2802.4,2801.8,0.89425945]
[1769719999300,0.06787896,2802.6,2801.8,0.89425945]
[1769719999503,0.84831389,2802.6,2801.8,0.89425945]
[1769720000308,0.06787896,2803.0,2801.8,13.43046448]
[1769720000534,0.06787896,2802.8,2801.8,13.43046448]
[1769720001044,0.06787896,2802.6,2801.8,0.002]
[1769720003613,13.45773833,2802.4,2801.8,0.002]
[1769720003822,0.06787896,2802.2,2801.8,0.002]
[1769720006148,0.06787896,2802.0,2801.5,0.002]
[1769720006456,1.34577383,2802.3,2801.5,0.002]
[1769720006644,0.06787896,2802.2,2801.5,0.002]
[1769720006822,0.06787896,2802.0,2801.5,0.002]
[1769720007028,0.43211392,2802.0,2801.5,0.002]
[1769720007224,1.34577383,2802.3,2801.5,0.002]
[1769720007620,0.06787896,2802.4,2801.5,0.002]
[1769720007954,0.95997319,2802.4,2801.5,0.002]
[1769720008147,0.06787896,2802.4,2801.5,0.002]
[1769720008654,0.06787896,2801.9,2801.5,0.002]
[1769720008868,13.53691463,2802.1,2801.5,0.002]
[1769720009152,0.06787896,2801.8,2801.5,0.002]
[1769720009743,0.06787896,2801.8,2801.1,1.63950651]
[1769720009914,0.06787896,2802.4,2801.1,15.39773342]
[1769720010117,0.06787896,2802.0,2801.1,15.39773342]
[1769720010317,0.06787896,2801.9,2801.2,2.6478843]
[1769720010675,0.06787896,2802.4,2801.2,16.40611121]
[1769720010820,0.95993051,2802.6,2801.2,16.40611121]
[1769720011025,0.06787896,2802.4,2801.2,16.40611121]
[1769720011225,0.06787896,2802.4,2801.3,1.80456177]
[1769720012056,0.89212432,2802.3,2801.4,0.89241093]
[1769720012534,0.06787896,2802.2,2801.4,0.89241093]
[1769720013244,0.06787896,2802.1,2801.3,0.89242671]
[1769720013414,0.06787896,2802.0,2801.3,0.89242671]
[1769720014842,0.96004739,2802.2,2801.2,3.5698781]
[1769720015042,0.06787896,2802.0,2801.2,3.5698781]
[1769720015752,0.06787896,2802.0,2801.2,0.89247465]
[1769720017255,14.73337453,2802.0,2801.1,0.89250651]
[1769720017454,1.53538593,2801.9,2801.1,0.89250651]
[1769720017826,1.53538593,2801.9,2801.4,0.002]
[1769720018154,0.06787896,2802.2,2801.4,0.002]
[1769720018927,0.06787896,2801.8,2801.4,0.002]
[1769720019261,0.06787896,2802.0,2801.4,0.002]
[1769720019471,0.06787896,2802.2,2801.4,0.002]
[1769720019622,0.95999148,2802.4,2801.4,0.002]
[1769720019828,0.06787896,2802.2,2801.4,0.002]
[1769720020256,0.06787896,2802.1,2801.4,0.002]
[1769720020646,0.06787896,2802.0,2801.4,0.002]
[1769720022959,0.96010783,2802.0,2801.4,0.002]
[1769720023255,0.06787896,2802.0,2801.4,0.002]
[1769720025259,13.84113749,2802.2,2801.4,0.002]
[1769720025761,14.73330881,2802.2,2801.4,0.002]
[1769720026161,0.06787896,2801.8,2801.4,0.002]
[1769720027356,14.73336734,2802.0,2801.4,0.002]
[1769720027559,0.06787896,2801.8,2801.4,0.002]
[1769720029461,14.73336734,2802.0,2801.4,0.002]
[1769720029665,0.06787896,2801.8,2801.4,0.002]
[1769720030350,0.06787896,2801.7,2801.4,0.002]
[1769720030550,0.06787896,2801.5,2801.4,0.002]
[1769720030765,0.06582896,2801.5,2801.1,0.002]
[1769720030963,0.06787896,2801.7,2801.1,0.002]
[1769720031272,15.22525124,2801.7,2801.1,0.002]
[1769720031478,13.84113749,2801.7,2801.1,0.002]
[1769720032166,13.84113749,2801.5,2800.6,0.002]
[1769720032476,0.06787896,2801.0,2800.6,0.002]
[1769720032666,0.06787896,2800.8,2800.6,0.002]
[1769720032868,0.06787896,2800.7,2800.0,0.89484256]
[1769720033047,0.06787896,2800.3,2800.0,0.002]
[1769720033379,0.06787896,2800.5,2800.0,0.002]
[1769720033947,0.06787896,2800.5,2800.0,6.27035488]
[1769720035272,0.06787896,2800.7,2800.0,6.27035488]
[1769720036162,0.06787896,2800.7,2800.1,0.89282525]
[1769720036368,0.06787896,2800.7,2800.3,6.26835488]
[1769720037685,0.06787896,2800.7,2800.1,0.89282525]
[1769720040389,0.06787896,2800.1,2799.7,0.002]
[1769720040554,12.87219998,2800.5,2799.7,0.89492983]
[1769720040883,0.06787896,2800.3,2799.7,0.894931]
[1769720041267,0.06787896,2800.4,2799.9,0.89286965]
[1769720041465,0.96051447,2800.7,2800.3,0.002]
[1769720041662,0.06787896,2800.5,2800.3,0.002]
[1769720042279,13.76491301,2800.5,2800.0,0.002]
[1769720042478,0.06787896,2800.1,2800.0,0.002]
[1769720042666,0.06787896,2800.5,2800.0,0.002]
[1769720043187,0.06787896,2800.3,2800.0,0.002]
[1769720043785,0.06787896,2800.8,2800.0,0.002]
[1769720044018,0.06787896,2800.6,2800.0,0.002]
[1769720044188,12.80432102,2801.3,2800.0,0.002]
[1769720044386,0.06887896,2801.5,2800.1,14.62624274]
[1769720044584,0.06887896,2801.5,2800.1,13.29640249]
[1769720044785,0.06787896,2801.3,2800.3,13.29640249]
[1769720045970,0.06887896,2801.5,2800.3,13.29640249]
[1769720046170,0.06787896,2801.3,2800.5,13.29640249]
[1769720046526,0.06787896,2800.9,2800.4,0.89272961]
[1769720048365,0.06787896,2800.9,2800.3,3.57091844]
[1769720048561,0.06787896,2801.1,2800.3,3.57091844]
[1769720049481,0.06787896,2801.2,2800.4,13.29640249]
[1769720049671,0.06787896,2801.2,2800.5,1.68673209]
[1769720049878,0.06787896,2801.3,2800.5,1.68673209]
[1769720050284,0.27046483,2801.4,2800.6,0.89266585]
[1769720050483,0.001,2801.5,2800.6,14.18906834]
[1769720050799,0.001,2801.5,2800.7,15.24104888]
[1769720051705,0.06787896,2801.8,2800.7,15.24104888]
[1769720051913,0.06787896,2801.7,2800.7,15.24104888]
[1769720052078,0.06787896,2802.0,2800.7,15.24104888]
[1769720052279,0.06787896,2801.8,2800.8,0.89260211]
[1769720052610,0.06787896,2801.7,2800.9,1.97040594]
[1769720052779,0.06787896,2802.0,2801.0,0.748]
[1769720052975,0.06787896,2802.0,2801.0,14.04440249]
[1769720053312,0.06787896,2801.9,2801.0,14.04440249]
[1769720053493,0.06787896,2802.2,2801.0,14.04440249]
[1769720053494,0.06787896,2801.8,2801.0,14.04440249]
[1769720053803,0.06787896,2801.8,2801.1,1.60148084]
[1769720054513,0.06787896,2801.8,2801.2,0.89247465]
[1769720054671,0.06787896,2801.6,2801.2,0.89247465]
[1769720054872,0.06787896,2801.4,2801.1,1.64048649]
[1769720055077,0.06787896,2801.6,2801.1,1.64048649]
[1769720056110,12.80432102,2802.3,2801.1,2.51854123]
[1769720056405,0.06787896,2801.8,2801.1,2.51854123]
[1769720056710,0.06787896,2801.7,2801.1,1.77054123]
[1769720056917,0.06787896,2801.7,2801.1,2.51854123]
[1769720057093,0.06787896,2801.9,2801.1,2.51854123]
[1769720057291,0.06787896,2801.9,2801.2,0.60885761]
[1769720057810,0.06787896,2801.9,2801.2,1.35685761]
[1769720059077,0.06787896,2801.9,2801.3,0.89244279]
[1769720060216,0.06787896,2802.0,2801.3,0.89244279]
[1769720060404,12.87219998,2802.7,2801.3,14.18884528]
[1769720060605,0.90020272,2802.5,2801.3,14.18884528]
[1769720060811,0.06787896,2802.3,2801.3,14.18884528]
[1769720060987,0.06787896,2802.3,2801.3,0.89244279]
[1769720061183,0.06787896,2801.7,2801.5,0.89237908]
[1769720061381,0.06787896,2801.9,2801.5,0.89237908]
[1769720062108,0.06787896,2801.9,2801.2,3.5698653]
[1769720062313,0.06787896,2801.7,2800.7,13.29640249]
[1769720062496,1.29400789,2801.9,2801.4,0.89240389]
[1769720062698,0.06787896,2802.3,2801.4,0.89240389]
[1769720063020,0.06787896,2802.2,2801.4,0.89240389]
[1769720063334,0.06787896,2802.0,2801.4,0.89240389]
[1769720063819,0.06787896,2802.2,2801.4,0.89240389]
[1769720064031,0.90020272,2802.5,2801.4,1.69557303]
[1769720064187,0.90020272,2802.5,2801.4,14.99197552]
[1769720064388,12.87219998,2802.3,2801.4,1.69557303]
[1769720064593,1.28722,2802.2,2801.4,0.89240389]
[1769720065117,0.90020272,2802.5,2801.4,0.89240389]
[1769720065341,0.06787896,2802.3,2801.4,0.89240389]
[1769720065902,0.06787896,2802.1,2801.4,0.89240389]
[1769720066143,13.41293532,2802.3,2801.4,1.64040389]
[1769720066357,0.06787896,2802.0,2801.4,1.64040389]
[1769720067448,0.06787896,2802.0,2801.6,0.002]
[1769720068245,0.06787896,2801.8,2801.6,0.002]
[1769720069452,0.06787896,2801.8,2800.9,3.57025445]
[1769720069453,0.06787896,2801.6,2800.9,4.31825445]
[1769720070137,13.41293532,2801.8,2800.9,4.31825445]
[1769720070347,0.45844321,2801.7,2800.9,4.31825445]
[1769720070652,13.41293532,2801.8,2800.9,4.31825445]
[1769720071133,0.06787896,2801.8,2800.9,4.31825445]
[1769720071337,0.06887896,2802.1,2801.1,0.89250651]
[1769720071510,0.001,2802.1,2801.1,14.72395646]
[1769720071849,0.001,2802.1,2801.3,13.83144995]
[1769720073434,0.83232376,2802.5,2801.4,14.72386088]
[1769720079541,13.44755699,2802.7,2801.8,6.25935532]
[1769720079748,0.001,2802.3,2801.9,0.748]
[1769720079944,1.3447557,2802.6,2801.9,0.748]
[1769720080337,0.06787896,2802.5,2801.9,0.748]
[1769720080853,13.37967803,2803.3,2802.1,12.65612639]
[1769720081058,0.4381663,2803.2,2802.4,6.25935532]
[1769720081239,13.37967803,2803.3,2802.7,6.25935532]
[1769720081553,0.06787896,2803.5,2802.6,0.748]
[1769720081716,0.06787896,2803.3,2802.6,0.748]
[1769720082449,13.44755699,2803.5,2802.6,0.748]
[1769720082746,1.3447557,2803.4,2802.7,0.891997]
[1769720086521,14.72443373,2803.4,2802.7,0.891997]
[1769720086721,13.44755699,2803.3,2802.7,0.891997]
[1769720090049,13.44755699,2803.3,2802.4,3.56835709]
[1769720090257,1.3447557,2803.4,2802.5,13.40312639]
[1769720090420,13.44755699,2803.5,2802.6,1.69714835]
[1769720090626,13.44755699,2803.5,2802.5,0.747]
[1769720091152,0.06787896,2803.3,2802.5,0.747]
[1769720091323,13.44755699,2802.9,2802.2,0.89214985]
[1769720091522,0.06787896,2802.7,2802.2,0.89214985]
[1769720092049,14.3404342,2803.1,2802.1,3.56873432]
[1769720092249,0.06787896,2802.9,2802.1,3.56873432]
[1769720092549,13.44755699,2802.9,2802.1,4.31573432]
[1769720092750,1.3447557,2802.8,2802.1,3.56873432]
[1769720092927,0.06787896,2802.7,2802.1,3.56873432]
[1769720093521,1.3447557,2802.8,2802.1,3.56873432]
[1769720093724,0.06787896,2802.7,2802.1,3.56873432]
[1769720093924,1.3447557,2802.8,2802.1,3.56873432]
[1769720094756,0.06787896,2802.8,2802.1,4.6596649]
[1769720095259,0.06787896,2802.9,2802.1,4.6596649]
[1769720095563,13.37967803,2803.0,2802.1,4.6596649]
[1769720099338,13.37967803,2803.0,2802.0,0.89220361]
[1769720099339,12.79420793,2802.5,2802.0,0.89220361]
[1769720099659,0.0663916,2802.4,2802.0,0.89219802]
[1769720100260,0.06787896,2802.2,2801.6,0.002]
[1769720100430,0.001,2803.1,2801.7,13.56667155]
[1769720100753,0.001,2803.1,2801.9,12.81967155]
[1769720101055,12.79420793,2803.6,2802.2,12.81967155]
[1769720101228,12.79420793,2803.6,2802.3,13.71179587]
[1769720101427,12.79420793,2803.4,2802.3,13.71179587]
[1769720101658,14.08041662,2803.3,2802.4,1.57856618]
[1769720101827,1.28620869,2803.3,2802.5,0.747]
[1769720102027,12.86208689,2803.6,2802.5,0.747]
[1769720102233,12.79420793,2803.6,2802.5,0.747]
[1769720102654,12.86208689,2803.5,2802.5,0.747]
[1769720102828,12.86208689,2803.3,2802.5,0.747]
[1769720103033,0.06787896,2803.5,2802.5,0.747]
[1769720103034,0.06787896,2803.5,2802.5,13.56667155]
[1769720103333,0.06787896,2803.5,2802.7,0.891997]
[1769720104264,12.79420793,2803.8,2802.7,13.71166855]
[1769720104467,0.27545304,2804.0,2802.7,13.71166855]
[1769720104654,0.001,2804.3,2803.1,7.50789707]
[1769720104836,12.79420793,2805.0,2803.3,12.81967155]
[1769720105161,1.44321129,2804.9,2803.5,12.81967155]
[1769720105363,1.44321129,2804.9,2803.7,12.81967155]
[1769720105663,1.37533233,2804.9,2803.7,12.81967155]
[1769720105865,0.06787896,2805.1,2803.7,12.81967155]
[1769720106073,12.79420793,2805.3,2803.7,12.81967155]
[1769720106281,12.79420793,2804.9,2803.8,0.747]
[1769720106594,12.86208689,2805.1,2803.9,0.747]
[1769720107231,12.86208689,2805.1,2804.0,0.89158345]
[1769720107454,1.37532923,2805.0,2804.1,0.52049172]
[1769720108651,12.86208689,2804.4,2803.7,0.89167817]
[1769720108967,12.86208689,2804.7,2803.9,0.89160928]
[1769720109291,12.86208689,2804.7,2803.5,4.31393599]
[1769720109292,0.06787896,2804.9,2803.5,0.747]
[1769720109430,0.30811245,2804.9,2803.7,3.566461]
[1769720109636,0.001,2806.0,2804.6,7.50789707]
[1769720109843,0.001,2806.0,2804.3,12.81967155]
[1769720109844,12.79420793,2805.9,2804.7,1.49778971]
[1769720110061,12.79420793,2805.7,2804.7,0.747]
[1769720110271,13.1683665,2805.6,2804.7,0.747]
[1769720110878,0.06787896,2805.1,2803.7,3.566461]
[1769720111175,12.79420793,2805.2,2803.8,12.81967155]
[1769720111383,14.05945371,2805.6,2804.0,0.89158345]
[1769720111545,12.86208689,2805.4,2804.0,0.89158345]
[1769720111993,12.79420793,2805.4,2804.0,0.89158345]
[1769720112157,0.06787896,2805.3,2804.0,0.89158345]
[1769720112473,0.37415857,2805.6,2804.0,13.711255]
[1769720112643,0.30627961,2805.6,2804.2,12.81967155]
[1769720113048,1e-08,2805.6,2804.2,12.81967155]
[1769720113382,1e-08,2805.6,2804.5,0.89142449]
[1769720113675,1e-08,2805.6,2804.6,0.747]
[1769720115680,0.001,2805.4,2804.7,0.89136092]
[1769720115876,0.001,2805.4,2804.8,0.52038046]
[1769720116666,0.001,2805.4,2804.9,0.747]
[1769720116890,0.001,2805.4,2804.7,0.89136092]
[1769720116891,12.79520793,2805.4,2804.7,0.89136092]
[1769720117188,0.06787896,2805.3,2804.7,0.89136092]
[1769720117348,0.06787896,2805.3,2804.6,4.31244371]
[1769720117349,12.86208689,2805.3,2804.6,0.89137634]
[1769720117554,12.79420793,2805.3,2804.5,3.56557084]
[1769720117757,14.08051662,2805.3,2804.5,3.56557084]
[1769720118592,1.28630869,2805.3,2804.5,3.56557084]
[1769720118758,0.001,2805.4,2804.5,3.56557084]
[1769720120050,1e-08,2805.6,2804.5,16.38524239]
[1769720120688,12.79520793,2806.0,2804.6,12.81967155]
[1769720120853,0.06787896,2806.6,2804.7,12.81967155]
[1769720121052,12.79420793,2806.7,2804.7,12.81967155]
[1769720121252,0.06787896,2807.0,2805.2,12.81967155]
[1769720121574,12.79420793,2806.9,2805.4,12.81967155]
[1769720121881,12.79420793,2806.9,2805.5,0.89110675]
[1769720122086,1.28620869,2806.8,2805.6,1.72752053]
[1769720122453,12.86208689,2806.6,2805.6,1.72752053]
[1769720122782,12.86208689,2806.6,2805.5,0.89110675]
[1769720122783,12.86208689,2806.4,2805.5,0.89110675]
[1769720122988,0.06787896,2806.2,2805.5,0.89110675]
[1769720123357,12.86208689,2806.2,2805.5,0.89110675]
[1769720123592,12.86208689,2806.2,2805.4,0.89113083]
[1769720123775,12.86208689,2805.8,2805.2,0.89119265]
[1769720124187,12.86208689,2805.6,2804.5,1.83594107]
[1769720124397,12.79420793,2805.4,2804.5,1.83594107]
[1769720124698,12.79420793,2805.2,2804.5,2.72735945]
[1769720125460,1.27942079,2805.3,2804.5,2.72735945]
[1769720125687,0.89097972,2805.9,2804.5,2.72735945]
[1769720125889,13.72111746,2805.8,2804.5,2.72735945]
[1769720127192,0.06787896,2805.4,2804.5,2.72735945]
[1769720127499,13.72111746,2805.6,2804.5,3.47435945]
[1769720127786,13.72111746,2805.6,2804.5,4.53493499]
[1769720127989,13.72111746,2805.6,2804.7,0.002]
[1769720128161,14.6122237,2805.6,2804.7,0.002]
[1769720128366,13.72111746,2805.6,2804.7,0.002]
[1769720128566,0.06787896,2805.8,2804.7,0.002]
[1769720128768,0.06787896,2805.8,2804.7,0.4556935]
[1769720128965,13.72111746,2805.8,2804.7,0.4556935]
[1769720130385,3.63171361,2806.0,2804.7,0.4556935]
[1769720130386,14.54415605,2806.1,2804.8,0.89132915]
[1769720130709,14.54415679,2806.1,2804.8,0.89132915]
[1769720130890,14.54415679,2806.1,2804.7,4.0210101]
[1769720130891,13.6532385,2805.4,2804.7,0.89333776]
[1769720131401,13.72111746,2805.7,2804.7,0.89333776]
[1769720132298,13.72111746,2805.7,2804.7,0.002]
[1769720132464,14.61217342,2805.7,2804.7,0.002]
[1769720132666,13.72111746,2805.3,2804.7,0.002]
[1769720132909,13.6532385,2805.2,2804.7,0.002]
[1769720133210,13.72111746,2805.1,2804.2,0.89149541]
[1769720133380,13.72111746,2805.1,2804.3,0.89148063]
[1769720133381,13.72111746,2804.9,2804.3,0.89148063]
[1769720133577,13.6532385,2804.9,2804.3,0.8914689]
[1769720134606,0.95912401,2805.1,2804.1,0.002]
[1769720137502,14.00133606,2805.2,2804.1,0.002]
[1769720137703,13.17798565,2805.1,2804.1,0.002]
[1769720137897,13.11010669,2804.8,2804.1,0.002]
[1769720138602,13.17798565,2805.1,2804.1,0.002]
[1769720138787,13.11010669,2804.8,2804.1,0.002]
[1769720138981,13.17798565,2805.1,2804.1,0.002]
[1769720139188,1.31779856,2805.0,2804.1,0.002]
[1769720140126,14.49578421,2805.0,2804.1,0.002]
[1769720140529,14.49578421,2805.0,2804.3,0.002]
[1769720140905,13.17798565,2804.8,2804.3,0.002]
[1769720141640,13.17798565,2804.6,2803.9,0.002]
[1769720142001,13.11010669,2804.6,2803.9,0.002]
[1769720142230,13.17798565,2804.5,2803.9,0.002]
[1769720143341,14.06941531,2804.5,2803.9,0.002]
[1769720143646,14.42790525,2804.4,2803.9,0.002]
[1769720144302,13.17798565,2804.3,2803.9,0.002]
[1769720144705,13.11010669,2804.3,2803.9,0.002]
[1769720145527,0.95923154,2804.8,2803.9,0.002]
[1769720145738,14.06933823,2804.8,2803.9,0.002]
[1769720147237,0.06787896,2804.6,2803.9,0.002]
[1769720148130,13.17798565,2804.6,2803.9,0.002]
[1769720148333,0.06787896,2804.4,2803.9,0.002]
[1769720148843,13.11010669,2804.6,2803.9,0.002]
[1769720149045,1.31101067,2804.5,2803.9,0.002]
[1769720150230,0.89136234,2804.7,2803.9,0.002]
[1769720151616,13.17798565,2804.6,2803.9,0.002]
[1769720153049,13.17798565,2804.6,2804.1,0.002]
[1769720154749,13.11010669,2804.6,2804.1,0.002]
[1769720155451,13.11010669,2804.6,2803.9,0.002]
[1769720156759,0.99542556,2804.8,2803.9,0.002]
[1769720157058,0.0362,2804.8,2803.9,0.002]
[1769720157253,0.99541194,2804.8,2803.9,0.002]
[1769720157434,0.10407896,2804.8,2803.9,0.002]
[1769720158518,14.86004931,2804.8,2803.9,0.002]
[1769720158721,13.93251611,2804.6,2803.9,0.002]
[1769720158924,13.86463715,2804.6,2803.9,0.002]
[1769720159204,0.10407896,2804.8,2803.9,0.002]
[1769720159525,0.99540931,2804.8,2803.9,0.002]
[1769720159725,14.86004646,2804.8,2803.9,0.002]
[1769720159948,13.90083715,2804.8,2803.9,0.002]
[1769720160171,14.8600472,2804.8,2803.9,0.002]
[1769720160664,13.93251611,2804.6,2803.9,0.002]
[1769720160824,14.82393617,2804.6,2803.9,0.002]
[1769720162622,13.86463715,2804.6,2803.9,0.002]
[1769720162852,14.75695819,2804.9,2803.9,0.002]
[1769720163065,0.06787896,2804.6,2803.9,0.002]
[1769720163365,13.93251611,2804.6,2803.9,0.002]
[1769720163746,13.86463715,2804.6,2803.9,0.002]
[1769720164143,0.001,2804.9,2803.9,13.35134841]
[1769720164457,0.001,2804.9,2804.0,1.33513484]
[1769720164458,0.96019778,2804.9,2804.0,1.33513484]
[1769720164656,0.96019778,2804.9,2803.9,0.002]
[1769720164657,0.001,2804.6,2803.9,0.002]
[1769720165549,0.001,2804.6,2803.9,13.35134841]
[1769720167379,0.001,2804.6,2804.0,0.89158345]
[1769720168568,0.001,2804.6,2804.0,3.02915821]
[1769720168941,0.001,2804.6,2804.0,1.63858345]
[1769720172886,0.001,2804.6,2804.0,0.89158345]